fUSD/lending_fUSD_20240930
["ID","MTS","AMOUNT","RATE_DAILY","PERIOD"]
[339506065,1727665832986,-500.0,0.00012202,2]
[339506066,1727665832996,-200.0,0.00012202,2]
[339506067,1727665833006,-181.92,0.00012208,2]
[339506068,1727665833015,-1201.49085459,0.00012215,2]
[339506069,1727665833025,-684.0,0.00012225,2]
[339506070,1727665833035,-36246.98135958,0.00012226,2]
[339506071,1727665833046,-22110.07881803,0.00012226,2]
[339506072,1727665833058,-2203.60884502,0.00012226,2]
[339506073,1727665833068,-1152.45391395,0.00012226,2]
[339506074,1727665834431,484.65,9.413e-05,2]
[339506076,1727665835573,-299.99,0.00011677,2]
[339506098,1727665838389,-184.66,0.00011677,2]
[339506099,1727665838398,-2374.51563624,0.00011694,2]
[339506100,1727665838428,-1226.21279237,0.00011694,2]
[339506101,1727665838439,-584.85227083,0.00011694,2]
[339506102,1727665838505,-4846.35836766,0.00011694,2]
[339506103,1727665838762,-34385.43936342,0.00012226,2]
[339506104,1727665838772,-291.15315336,0.00012226,2]
[339506105,1727665838782,-170.433,0.00012231,2]
[339506106,1727665838792,-1000.0,0.00012239,2]
[339506107,1727665838801,-1000.0,0.00012239,2]
[339506108,1727665838810,-1000.0,0.00012239,2]
[339506109,1727665838820,-1000.0,0.00012239,2]
[339506110,1727665838829,-1000.0,0.00012239,2]
[339506111,1727665838839,-848.6042,0.00012239,2]
[339506112,1727665838848,-1201.49085459,0.00012245,2]
[339506113,1727665838858,-1201.49085459,0.00012274,2]
[339506114,1727665838867,-7256.5143002,0.00012296,2]
[339506115,1727665838877,-7522.0687034,0.00012296,2]
[339506116,1727665838887,-154.58863686,0.00012299,2]
[339506117,1727665838896,-677721.2028536,0.000123,2]
[339506118,1727665838907,-32256.45000002,0.000123,2]
[339506119,1727665838918,-560.50565751,0.000123,2]
[339506120,1727665840268,-1547.361,0.000123,2]
[339506121,1727665840279,-631.80024818,0.000123,2]
[339506122,1727665840291,-2562.500055,0.000123,2]
[339506123,1727665840303,-7702.3264,0.000123,2]
[339506125,1727665840422,-1018.5,0.000123,2]
[339506127,1727665840434,-969.356,0.000123,2]
[339506130,1727665840449,-499.7166405,0.000123,2]
[339506132,1727665840461,-6626.95135,0.000123,2]
[339506134,1727665840472,-781.95875343,0.000123,2]
[339506155,1727665843212,-2050.09137768,0.000123,2]
[339506156,1727665843391,-1290.0,0.000123,2]
[339506171,1727666175049,174.13,8.9e-05,2]
[339506172,1727666475802,565.09,8.702e-05,2]
[339506173,1727666641378,2150.05494467,0.000126,17]
[339506198,1727667032377,-314.83970149,0.0001,2]
[339506199,1727667032389,-735.16029851,0.0001,2]
[339506200,1727667032398,-229.75500015,0.0001,2]
[339506201,1727667032407,-250.0,0.00010012,2]
[339506202,1727667032417,-250.0,0.00010042,2]
[339506203,1727667032427,-570.59359344,0.0001006,2]
[339506204,1727667032436,-600.0,0.00010068,2]
[339506205,1727667032445,-3094.69,0.00010071,2]
[339506206,1727667032454,-180.82805683,0.000101,2]
[339506207,1727667032463,-411.09,0.00010133,2]
[339506208,1727667032473,-552.48,0.00010164,2]
[339506209,1727667032482,-600.0,0.00010357,2]
[339506210,1727667032491,-150.99,0.00010357,2]
[339506211,1727667032500,-155.4,0.00010433,2]
[339506212,1727667032509,-313.94,0.00010471,2]
[339506213,1727667032519,-300.0,0.00010473,2]
[339506214,1727667032528,-4867.07305107,0.00010474,2]
[339506218,1727667038885,-948.68694893,0.00010474,2]
[339506219,1727667038894,-150.0,0.00010816,2]
[339506220,1727667038903,-198.43,0.00010817,2]
[339506221,1727667038913,-1674.64129733,0.00010817,2]
[339506252,1727667040517,-266.45083805,0.00010817,2]
[339506253,1727667040531,-4816.61786848,0.00010817,2]
[339506254,1727667040729,-681.26488617,0.00010817,2]
[339506255,1727667040742,-1149.96,0.00010817,2]
[339506258,1727667043259,-8085.42510997,0.00010817,2]
[339506259,1727667043268,-9999.99,0.00010817,2]
[339506260,1727667043278,-199.57,0.0001086,2]
[339506261,1727667043287,-2784.02022813,0.0001087,2]
[339506262,1727667043333,-1979.18188074,0.0001087,2]
[339506263,1727667043344,-303.9176278,0.0001087,2]
[339506264,1727667043355,-7981.01020727,0.0001087,2]
[339506265,1727667043367,-259.4880914,0.0001087,2]
[339506266,1727667043459,-675.54498337,0.0001087,2]
[339506267,1727667043468,-199.57,0.0001087,2]
[339506268,1727667043477,-199.57,0.0001087,2]
[339506269,1727667043487,-199.57,0.0001087,2]
[339506270,1727667043496,-199.57,0.0001087,2]
[339506271,1727667043505,-199.57,0.0001087,2]
[339506272,1727667043515,-199.57,0.0001087,2]
[339506273,1727667043524,-199.57,0.0001087,2]
[339506274,1727667043533,-199.57,0.0001087,2]
[339506275,1727667043542,-199.57,0.0001087,2]
[339506276,1727667043551,-198.3848501,0.00010879,3]
[339506277,1727667043560,-9959.94016655,0.0001088,2]
[339506283,1727667046347,-5008.17589993,0.0001088,2]
[339506284,1727667046359,-12181.45042317,0.0001088,2]
[339506285,1727667046370,-282.58601024,0.0001088,2]
[339506286,1727667046456,-250.10479714,0.0001088,2]
[339506287,1727667046488,-9992.31590297,0.0001088,2]
[339506288,1727667046580,-131590.20825882,0.0001088,2]
[339506289,1727667046590,-1634.80866817,0.00010899,2]
[339506290,1727667046599,-1640.3408,0.000109,2]
[339506291,1727667046609,-213.5,0.00010959,2]
[339506292,1727667046618,-250.0,0.00010959,2]
[339506293,1727667046632,-181.23,0.00010959,2]
[339506294,1727667046641,-2297.67,0.00010959,2]
[339506295,1727667046656,-565.09,0.00010965,2]
[339506296,1727667046666,-1634.80866817,0.00010977,2]
[339506297,1727667046674,-152.62,0.0001099,2]
[339506298,1727667046684,-299.99,0.00010993,2]
[339506299,1727667046693,-131409.0450675,0.00011,2]
[339506300,1727667046704,-2138.00000118,0.00011,2]
[339506301,1727667046715,-1135.31998,0.00011,2]
[339506311,1727667471830,601.43,8.351e-05,2]
[339506312,1727667535607,-300.0,0.000129,14]
[339506313,1727667559254,-1011.40559727,0.00013,15]
[339506314,1727667588617,200.0,0.00013631,30]
[339506315,1727667588653,200.0,0.00013631,30]
[339506316,1727667588707,200.0,0.00013631,30]
[339506317,1727667588756,200.0,0.00013631,30]
[339506318,1727667591590,200.0,0.00013631,30]
[339506319,1727667608846,-68688.59440273,0.000136,12]
[339506320,1727667693319,-150.623304,0.000129,14]
[339506321,1727667716904,-150.623304,0.00013,15]
[339506322,1727667716994,200.0,0.00013532,30]
[339506323,1727667717088,200.0,0.00013532,30]
[339506324,1727667717123,200.0,0.00013532,30]
[339506325,1727667717178,200.0,0.00013532,30]
[339506326,1727667717218,250.57983454,0.00013532,30]
[339506329,1727667824727,799.0,9.913e-05,2]
[339506330,1727667844337,200.0,0.00013464,30]
[339506331,1727667845769,799.0,9.913e-05,2]
[339506332,1727667852849,250.0,9.971e-05,2]
[339506333,1727667866811,245.48497057,9.913e-05,2]
[339506334,1727667867997,173.17,9.971e-05,2]
[339506335,1727667939751,492.8025774,9.939e-05,2]
[339506336,1727667947822,427.28,9.957e-05,2]
[339506337,1727668059030,666.56,8.219e-05,2]
[339506351,1727668232380,-439.49484625,9.997e-05,2]
[339506354,1727668232558,-40.50515375,9.997e-05,2]
[339506355,1727668232568,-354.31186637,9.997e-05,5]
[339506356,1727668232579,-836.6347215,9.997e-05,5]
[339506357,1727668232591,-8622.51541111,9.997e-05,5]
[339506358,1727668232600,-498.04,0.0001,2]
[339506359,1727668232611,-307.75,0.00010039,2]
[339506360,1727668232620,-250.0,0.0001004,2]
[339506361,1727668232629,-600.0,0.00010068,2]
[339506362,1727668232639,-500.0,0.00010068,2]
[339506363,1727668232649,-799.0,0.00010339,2]
[339506364,1727668232658,-666.56,0.00010474,2]
[339506365,1727668232668,-150.0,0.00010575,2]
[339506366,1727668232677,-150.0,0.00010858,2]
[339506367,1727668232687,-2428.08,0.00010858,2]
[339506369,1727668232697,-4593.5154,0.00010859,2]
[339506371,1727668232706,-209.837,0.00010859,2]
[339506372,1727668232715,-8672.3322,0.00010859,2]
[339506374,1727668232725,-5509.0518,0.00010859,2]
[339506376,1727668232734,-4254.059,0.00010859,2]
[339506378,1727668232743,-1000.0,0.00010859,2]
[339506380,1727668232753,-2500.0,0.00010859,2]
[339506382,1727668232762,-55759.44954767,0.0001086,2]
[339506383,1727668232771,-799.0,0.00010884,2]
[339506385,1727668232782,-420.4087,0.00010899,2]
[339506387,1727668232792,-4549.64428885,0.000109,2]
[339506389,1727668232801,-183.9393,0.000109,2]
[339506391,1727668232811,-528.80328652,0.000109,2]
[339506393,1727668232820,-168.29463694,0.000109,2]
[339506394,1727668232830,-5143.15585878,0.000109,2]
[339506395,1727668232839,-520.0,0.00010954,2]
[339506396,1727668232848,-379.181,0.00010958,2]
[339506397,1727668232860,-162.609,0.00010958,2]
[339506398,1727668232869,-1096.38479335,0.00010958,3]
[339506399,1727668232879,-161.5,0.00010959,2]
[339506400,1727668232888,-156.83,0.00010959,2]
[339506401,1727668232897,-163.92724835,0.00010963,2]
[339506402,1727668232907,-321.28577009,0.00010973,2]
[339506403,1727668232918,-169.58,0.00010989,2]
[339506404,1727668232928,-1096.38479335,0.00010998,3]
[339506405,1727668232938,-1096.38479335,0.00010998,3]
[339506406,1727668232948,-1096.38479335,0.00010998,3]
[339506407,1727668232957,-500.0,0.00010998,2]
[339506408,1727668232966,-501.4243195,0.00010998,2]
[339506409,1727668232976,-500.0,0.00010999,2]
[339506410,1727668232985,-175983.44866599,0.00011,2]
[339506411,1727668232995,-433.93,0.00011,2]
[339506412,1727668233005,-302.08,0.00011,2]
[339506413,1727668233015,-301.61,0.00011,2]
[339506414,1727668233025,-428.57,0.00011,2]
[339506415,1727668233034,-428.57,0.00011,2]
[339506416,1727668233044,-428.57,0.00011,2]
[339506417,1727668233054,-500.0,0.00011053,2]
[339506418,1727668233064,-42954.0961,0.00011054,2]
[339506419,1727668233073,-968.75,0.00011063,2]
[339506420,1727668233083,-5143.15585869,0.00011066,2]
[339506421,1727668233093,-150.0,0.00011071,2]
[339506422,1727668233102,-162.05154868,0.00011071,2]
[339506423,1727668233114,-500.0,0.00011164,2]
[339506424,1727668233124,-1000.0,0.00011169,2]
[339506425,1727668233133,-5143.15585869,0.00011232,2]
[339506426,1727668233143,-480.0,0.00011247,2]
[339506427,1727668233153,-276.56308758,0.00011269,3]
[339506428,1727668233163,-1123.95238041,0.00011269,3]
[339506429,1727668233173,-528.8032865,0.00011273,2]
[339506430,1727668233183,-307.75,0.00011294,2]
[339506431,1727668233192,-422.34458308,0.00011295,2]
[339506432,1727668233202,-5143.15585869,0.00011398,2]
[339506433,1727668233212,-507.45601509,0.00011438,2]
[339506434,1727668233224,-92.54398491,0.00011438,2]
[339506435,1727668233234,-235.59916489,0.00011438,2]
[339506436,1727668233298,-264.40083511,0.00011438,2]
[339506437,1727668233308,-799.0,0.00011457,2]
[339506438,1727668233318,-429.79,0.00011534,2]
[339506439,1727668233327,-765.92,0.00011534,2]
[339506440,1727668233337,-5143.15585869,0.00011564,2]
[339506441,1727668233346,-1000.0,0.00011604,2]
[339506442,1727668233357,-968.75,0.00011616,2]
[339506443,1727668233367,-528.8032865,0.00011647,2]
[339506444,1727668233377,-1960.60096767,0.00011692,2]
[339506445,1727668233386,-151.0,0.00011718,2]
[339506446,1727668233396,-190.646382,0.00011718,2]
[339506447,1727668233406,-151.0,0.00011718,2]
[339506448,1727668233416,-5143.15585869,0.00011729,2]
[339506449,1727668233426,-155.4,0.00011737,2]
[339506450,1727668233436,-5143.15585869,0.00011895,2]
[339506451,1727668233445,-255.0,0.000119,2]
[339506452,1727668233455,-500.0,0.00011999,2]
[339506453,1727668233466,-1100.0,0.00012,2]
[339506454,1727668233479,-12120.02773498,0.00012,2]
[339506455,1727668233488,-500.0,0.00012,2]
[339506456,1727668233498,-500.0,0.00012,2]
[339506457,1727668233508,-500.0,0.00012,2]
[339506458,1727668233519,-500.0,0.00012,2]
[339506459,1727668233528,-528.8032865,0.0001202,2]
[339506460,1727668233538,-799.0,0.00012029,2]
[339506461,1727668233548,-161.13,0.00012033,2]
[339506462,1727668233558,-2025.50702196,0.00012035,2]
[339506463,1727668233569,-180.0,0.00012055,2]
[339506464,1727668233578,-5143.15585869,0.00012061,2]
[339506465,1727668233588,-2083.16080415,0.00012116,2]
[339506466,1727668233598,-152.73,0.00012125,2]
[339506467,1727668233609,-500.0,0.00012134,2]
[339506468,1727668233619,-248.29653522,0.00012134,2]
[339506469,1727668233628,-541597.46405941,0.00012134,2]
[339506470,1727668233642,-1398.81207558,0.00012134,2]
[339506475,1727668238432,-129689.07044851,0.00012134,2]
[339506476,1727668238444,-10928.45358442,0.00012134,2]
[339506477,1727668238457,-574.08995785,0.00012134,2]
[339506478,1727668238472,-311.7360524,0.00012134,2]
[339506479,1727668238664,-399.87216358,0.00012134,2]
[339506480,1727668238686,-1000.0,0.00012134,2]
[339506485,1727668240367,-9585.16416615,0.00012134,2]
[339506486,1727668240388,-263.7740842,0.00012134,2]
[339506487,1727668240401,-421.390001,0.00012134,2]
[339506488,1727668240426,-526.14672771,0.00012134,2]
[339506489,1727668240437,-2585.01684444,0.00012134,2]
[339506490,1727668240511,-13253.22423378,0.00012134,2]
[339506491,1727668240535,-2994.36697904,0.00012134,2]
[339506492,1727668240640,-517.05379565,0.00012134,2]
[339506507,1727668243336,-7040.65125959,0.00012134,2]
[339506510,1727668243347,-613.09825755,0.00012134,2]
[339506512,1727668243359,-293.75433028,0.00012134,2]
[339506514,1727668243371,-643.71140223,0.00012134,2]
[339506516,1727668243492,-2911.3289319,0.00012134,2]
[339506517,1727668243649,-2865.81931308,0.00012134,2]
[339506539,1727668246395,-845.5343228,0.00012134,2]
[339506541,1727668246406,-3975.80907621,0.00012134,2]
[339506543,1727668246417,-6546.54522758,0.00012134,2]
[339506552,1727668246490,-476.26028091,0.00012134,2]
[339506563,1727668246589,-3723.26522,0.00012134,2]
[339506578,1727668247886,6567.7151,9.897e-05,2]
[339506596,1727668694015,645.3,8.686e-05,2]
[339506597,1727669278301,613.03,8.956e-05,2]
[339506601,1727669431509,-418.54907487,0.0001,2]
[339506602,1727669431614,-631.45092513,0.0001,2]
[339506603,1727669431624,-71.92695805,0.0001,2]
[339506604,1727669431720,-428.07304195,0.0001,2]
[339506605,1727669431729,-500.0,0.0001,2]
[339506606,1727669431739,-500.0,0.0001,2]
[339506607,1727669431748,-500.0,0.0001,2]
[339506608,1727669431757,-500.0,0.0001,2]
[339506609,1727669431767,-500.0,0.0001,2]
[339506610,1727669431776,-500.0,0.0001,2]
[339506611,1727669431785,-429.98011972,0.0001,2]
[339506612,1727669431798,-700.0,0.00010068,2]
[339506613,1727669431807,-250.0,0.00010398,2]
[339506614,1727669431816,-799.0,0.00010645,2]
[339506615,1727669431826,-169.58,0.00010679,2]
[339506616,1727669431837,-213.64,0.0001084,2]
[339506617,1727669431847,-250.0,0.00010885,2]
[339506618,1727669431856,-622.3174,0.000109,2]
[339506619,1727669431866,-1000.0,0.000109,2]
[339506620,1727669431876,-184.65,0.00010906,2]
[339506621,1727669431886,-155.53,0.00010959,2]
[339506622,1727669431895,-250.0,0.00010959,2]
[339506623,1727669431904,-213.5,0.00010959,2]
[339506624,1727669431914,-150.0,0.00010999,2]
[339506625,1727669431923,-174.24,0.00011059,2]
[339506626,1727669431932,-1000.0,0.0001111,2]
[339506627,1727669431942,-1000.0,0.00011132,2]
[339506628,1727669431951,-500.0,0.00011164,2]
[339506629,1727669431960,-500.0,0.00011164,2]
[339506631,1727669431969,-799.0,0.00011205,2]
[339506632,1727669431978,-581.25,0.0001121,2]
[339506634,1727669431988,-613.03,0.0001122,2]
[339506636,1727669431998,-155.4,0.00011271,2]
[339506637,1727669432008,-700.0,0.00011438,2]
[339506638,1727669432018,-581.25,0.00011771,2]
[339506639,1727669432028,-799.0,0.00011795,2]
[339506640,1727669432038,-1376.0,0.000119,2]
[339506641,1727669432048,-5872.0,0.00011971,2]
[339506642,1727669432058,-1150.581,0.00011971,2]
[339506643,1727669432067,-13525.694,0.00011971,2]
[339506644,1727669432080,-282.491,0.00011971,2]
[339506645,1727669432089,-1081.0,0.00011971,2]
[339506646,1727669432099,-1100.0,0.00012,2]
[339506647,1727669432109,-23190.79090147,0.0001202,2]
[339506648,1727669432118,-2875.0088,0.00012039,2]
[339506649,1727669432127,-180.0,0.00012055,2]
[339506650,1727669432136,-1000.0,0.00012086,2]
[339506651,1727669432146,-8727.66,0.00012087,2]
[339506652,1727669432155,-19999.99,0.00012087,2]
[339506653,1727669432165,-2000.0,0.00012134,2]
[339506654,1727669432174,-200.0,0.00012134,2]
[339506655,1727669432184,-303.345,0.00012134,2]
[339506656,1727669432194,-162.609,0.00012134,2]
[339506657,1727669432205,-200.0,0.00012134,2]
[339506658,1727669432214,-200.0,0.00012134,2]
[339506659,1727669432223,-200.0,0.00012134,2]
[339506660,1727669432232,-150.0,0.00012135,2]
[339506661,1727669432241,-19761.3104,0.00012139,2]
[339506662,1727669432250,-1028.63117181,0.0001219,2]
[339506663,1727669432259,-71451.6747892,0.000122,2]
[339506664,1727669432271,-816.05578721,0.000122,2]
[339506665,1727669432376,-340.78735789,0.000122,2]
[339506666,1727669437671,-348.75,0.00011325,2]
[339506667,1727669437681,-348.75,0.00011892,2]
[339506668,1727669437691,-72.78030709,0.00012004,2]
[339506669,1727669437721,-349.56427599,0.00012004,2]
[339506670,1727669437732,-1476.63524814,0.000122,2]
[339506671,1727669437955,-29533.59862531,0.000122,2]
[339506672,1727669437968,-275.96458678,0.000122,2]
[339506673,1727669437981,-3610.43470129,0.000122,2]
[339506674,1727669437997,-524.24704972,0.000122,2]
[339506675,1727669438009,-45117.52981854,0.000122,2]
[339506676,1727669438201,-310.24010705,0.000122,2]
[339506678,1727669439765,-1259.21728768,0.000122,2]
[339506681,1727669442600,-5012.24308868,0.000122,2]
[339506682,1727669442611,-79407.60121063,0.000122,2]
[339506683,1727669442622,-555.558903,0.000122,2]
[339506684,1727669442755,-3380.48377179,0.000122,2]
[339506685,1727669442811,-9883.21760832,0.000122,2]
[339506696,1727669445643,-13092.63126152,0.000122,2]
[339506697,1727669445669,-1203.491268,0.000122,2]
[339506698,1727669445793,-435.93874686,0.000122,2]
[339506701,1727669815414,603.01,9.303e-05,2]
[339506703,1727670354443,19230.67635495,6.94e-05,2]
[339506704,1727670368428,621.58,8.788e-05,2]
[339506715,1727670547559,-1050.0,0.0001,2]
[339506716,1727670547579,-211.90602489,0.0001,2]
[339506717,1727670547601,-600.0,0.00010068,2]
[339506718,1727670547621,-500.0,0.00010068,2]
[339506719,1727670547641,-246.06737999,0.000101,2]
[339506721,1727670547661,-213.64,0.00010224,2]
[339506723,1727670547682,-637.4473,0.000103,2]
[339506724,1727670547703,-300.0,0.00010399,2]
[339506725,1727670547723,-300.0,0.00010399,2]
[339506727,1727670547743,-11513.0,0.000104,5]
[339506728,1727670547763,-250.0,0.00010484,2]
[339506729,1727670547783,-180.08,0.0001049,2]
[339506730,1727670547802,-391.44,0.00010509,2]
[339506731,1727670547823,-167.94,0.00010646,2]
[339506732,1727670547845,-925.76805462,0.000109,2]
[339506733,1727670547865,-181.23,0.00010959,2]
[339506734,1727670547885,-272.42,0.00010959,2]
[339506735,1727670547904,-250.0,0.00010959,2]
[339506736,1727670547924,-161.5,0.00010959,2]
[339506737,1727670547945,-1000.0,0.00010999,2]
[339506738,1727670547964,-2272.77735654,0.00010999,2]
[339506739,1727670547987,-218045.68471725,0.00011,2]
[339506740,1727670548007,-464.57,0.00011,2]
[339506741,1727670548028,-40905.54434662,0.00011,2]
[339506742,1727670548049,-3600.23,0.00011033,2]
[339506743,1727670548069,-250.0,0.0001105,2]
[339506744,1727670548089,-621.58,0.00011052,2]
[339506745,1727670548321,-925.76805455,0.00011066,2]
[339506746,1727670548343,-500.0,0.00011164,2]
[339506747,1727670548362,-500.0,0.00011164,2]
[339506748,1727670548383,-371.0706,0.00011168,2]
[339506749,1727670548403,-1000.0,0.00011168,2]
[339506750,1727670548426,-925.76805455,0.00011232,2]
[339506751,1727670548446,-409.80817906,0.00011267,2]
[339506752,1727670548469,-477530.94659068,0.00011267,2]
[339506753,1727670548489,-1000.0,0.00011282,2]
[339506754,1727670548512,-925.76805455,0.00011398,2]
[339506755,1727670548532,-600.0,0.00011438,2]
[339506756,1727670548551,-272.42,0.00011507,2]
[339506757,1727670548571,-925.76805455,0.00011564,2]
[339506758,1727670548592,-925.76805455,0.00011729,2]
[339506759,1727670548612,-799.0,0.00011796,2]
[339506760,1727670548633,-925.76805455,0.00011895,2]
[339506761,1727670548653,-422.34458308,0.000119,2]
[339506762,1727670548673,-163.92724834,0.00012018,2]
[339506763,1727670548694,-242.676,0.00012039,2]
[339506764,1727670548715,-272.42,0.00012055,2]
[339506765,1727670548735,-2097.0,0.00012055,2]
[339506766,1727670548756,-925.76805455,0.00012061,2]
[339506767,1727670548776,-180.0,0.00012118,2]
[339506768,1727670548796,-1913.27990745,0.00012199,2]
[339506769,1727670548816,-508312.44878239,0.000122,2]
[339506770,1727670548837,-200.0,0.000122,2]
[339506771,1727670548857,-200.0,0.000122,2]
[339506772,1727670548877,-200.0,0.000122,2]
[339506773,1727670548897,-175.40163459,0.000122,2]
[339506774,1727670548916,-500.0,0.00012201,2]
[339506775,1727670548936,-12206.50465607,0.00012202,2]
[339506776,1727670548964,-500.0,0.00012202,2]
[339506777,1727670548984,-2000.0,0.00012202,2]
[339506778,1727670549005,-500.0,0.00012202,2]
[339506779,1727670549025,-500.0,0.00012202,2]
[339506780,1727670549045,-500.0,0.00012202,2]
[339506781,1727670549065,-200.0,0.00012202,2]
[339506782,1727670549086,-1000.0,0.00012224,2]
[339506783,1727670549107,-8788.909,0.00012225,2]
[339506784,1727670549127,-4381.5004,0.00012226,2]
[339506785,1727670549149,-159.59588203,0.00012226,2]
[339506786,1727670549169,-176.26776218,0.00012226,2]
[339506787,1727670549189,-194.10210224,0.00012226,2]
[339506788,1727670549213,-5358.15730304,0.00012226,2]
[339506789,1727670549236,-925.76805455,0.00012227,2]
[339506790,1727670549256,-1000.0,0.00012239,2]
[339506791,1727670549276,-1000.0,0.00012239,2]
[339506792,1727670549296,-1000.0,0.00012239,2]
[339506793,1727670549315,-1000.0,0.00012239,2]
[339506794,1727670549335,-1000.0,0.00012239,2]
[339506795,1727670549354,-1000.0,0.00012239,2]
[339506796,1727670549374,-1000.0,0.00012239,2]
[339506797,1727670549394,-1000.0,0.00012239,2]
[339506798,1727670549414,-1000.0,0.00012239,2]
[339506799,1727670549438,-596.4465,0.00012239,2]
[339506800,1727670549466,-170.124,0.00012248,2]
[339506801,1727670549487,-250.0,0.00012248,2]
[339506802,1727670549511,-150.212,0.00012248,2]
[339506803,1727670549530,-264.445,0.00012248,2]
[339506804,1727670549549,-201.857,0.00012248,2]
[339506805,1727670549568,-200.556,0.00012248,2]
[339506806,1727670549589,-200.0,0.00012255,2]
[339506807,1727670549608,-500.0,0.00012255,2]
[339506808,1727670549628,-500.0,0.00012255,2]
[339506809,1727670549649,-184.65,0.00012269,2]
[339506810,1727670549668,-913.23369437,0.00012282,2]
[339506811,1727670549688,-500.0,0.00012282,2]
[339506812,1727670549710,-7544.7505699,0.0001229,2]
[339506813,1727670549729,-450.107,0.00012295,2]
[339506814,1727670549748,-1298.996,0.00012295,2]
[339506815,1727670549767,-627.933,0.00012295,2]
[339506816,1727670549785,-1265.888,0.00012295,2]
[339506817,1727670549805,-817.107,0.00012295,2]
[339506818,1727670549824,-935.077,0.00012295,2]
[339506819,1727670549843,-276.768,0.00012295,2]
[339506820,1727670549863,-563.64,0.00012295,2]
[339506821,1727670549882,-599.62,0.00012295,2]
[339506822,1727670549901,-1907.438,0.00012295,2]
[339506823,1727670549921,-1915.39,0.00012295,2]
[339506824,1727670549941,-3356.914,0.00012295,2]
[339506825,1727670549962,-809.0,0.00012295,2]
[339506826,1727670549981,-150.0,0.00012295,2]
[339506827,1727670550002,-5872.0,0.00012295,2]
[339506828,1727670550021,-13503.0,0.00012295,2]
[339506829,1727670550041,-1148.0,0.00012295,2]
[339506830,1727670550061,-1081.0,0.00012295,2]
[339506831,1727670550080,-680472.33507587,0.000123,2]
[339506832,1727670550100,-1012.79,0.000123,2]
[339506833,1727670550119,-318.1,0.000123,2]
[339506834,1727670550138,-1008.56,0.000123,2]
[339506835,1727670550158,-176.26776216,0.0001231,2]
[339506836,1727670550178,-194.10210223,0.0001231,2]
[339506837,1727670550198,-500.0,0.0001231,2]
[339506838,1727670550218,-152.73,0.00012315,2]
[339506839,1727670550237,-152.73,0.00012316,2]
[339506840,1727670550260,-200.0,0.00012322,2]
[339506841,1727670550285,-200.0,0.00012322,2]
[339506842,1727670550305,-200.0,0.00012322,2]
[339506843,1727670550324,-174.37874904,0.00012323,2]
[339506844,1727670550344,-1123.95238041,0.00012324,3]
[339506845,1727670550365,-1123.95238041,0.00012324,3]
[339506846,1727670550385,-1123.95238042,0.00012324,3]
[339506847,1727670550407,-201.6151499,0.00012325,3]
[339506848,1727670550432,-1200.02067971,0.00012325,3]
[339506849,1727670550455,-500.0,0.00012325,2]
[339506850,1727670550477,-289.91349654,0.00012325,2]
[339506851,1727670550501,-500.0,0.00012325,2]
[339506852,1727670550522,-500.0,0.00012325,2]
[339506853,1727670550543,-295.97072006,0.00012325,2]
[339506854,1727670550564,-756.0,0.00012326,2]
[339506855,1727670550587,-3153779.67616578,0.00012326,3]
[339506856,1727670550607,-151.0,0.00012326,2]
[339506857,1727670550626,-151.0,0.00012326,2]
[339506858,1727670550646,-151.0,0.00012326,2]
[339506859,1727670550665,-196.928877,0.00012329,2]
[339506860,1727670550685,-169.239216,0.00012329,2]
[339506861,1727670550707,-169.239216,0.00012329,2]
[339506862,1727670550727,-277.441575,0.00012329,2]